fUSD/lending_fUSD_20240327
["ID","MTS","AMOUNT","RATE_DAILY","PERIOD"]
[320776962,1711553468909,-500.0,0.00054794,120]
[320776963,1711553468919,-500.0,0.00054794,120]
[320776964,1711553468928,-500.0,0.00054794,120]
[320776965,1711553468938,-500.0,0.00054794,120]
[320776966,1711553468947,-500.0,0.00054794,120]
[320776967,1711553468957,-500.0,0.00054794,120]
[320776968,1711553468966,-500.0,0.00054794,120]
[320776969,1711553468975,-500.0,0.00054794,120]
[320776970,1711553468985,-500.0,0.00054794,120]
[320776971,1711553468994,-500.0,0.00054794,120]
[320776972,1711553469003,-500.0,0.00054794,120]
[320776973,1711553469013,-500.0,0.00054794,120]
[320776974,1711553469022,-500.0,0.00054794,120]
[320776975,1711553469030,-500.0,0.00054794,120]
[320776976,1711553469040,-500.0,0.00054794,120]
[320776977,1711553469049,-500.0,0.00054794,120]
[320776978,1711553469058,-500.0,0.00054794,120]
[320776979,1711553469067,-500.0,0.00054794,120]
[320776980,1711553469081,-500.0,0.00054794,120]
[320776981,1711553469090,-500.0,0.00054794,120]
[320776982,1711553469099,-1596.73,0.00054794,120]
[320776983,1711553469108,-410.38797488,0.00054794,120]
[320776984,1711553469118,-500.0,0.00054794,120]
[320776985,1711553469127,-512.55038254,0.00054794,120]
[320776986,1711553469137,-500.0,0.00054794,120]
[320776987,1711553469146,-500.0,0.00054794,120]
[320776988,1711553469155,-500.0,0.00054794,120]
[320776989,1711553469164,-500.0,0.00054794,120]
[320776990,1711553469173,-851.83,0.00054794,120]
[320776991,1711553469183,-500.0,0.00054794,120]
[320776992,1711553469192,-500.0,0.00054794,120]
[320776993,1711553469201,-500.0,0.00054794,120]
[320776994,1711553469210,-510.53607595,0.00054794,120]
[320776995,1711553469227,-500.0,0.00054794,120]
[320776996,1711553469239,-500.0,0.00054794,120]
[320776997,1711553469248,-500.0,0.00054794,120]
[320776998,1711553469258,-500.0,0.00054794,120]
[320776999,1711553469267,-500.0,0.00054794,120]
[320777000,1711553469276,-758.43,0.00054794,120]
[320777001,1711553469286,-710.92,0.00054794,120]
[320777002,1711553469295,-500.0,0.00054794,120]
[320777003,1711553469305,-500.0,0.00054794,120]
[320777004,1711553469314,-500.0,0.00054794,120]
[320777005,1711553469324,-500.0,0.00054794,120]
[320777006,1711553469337,-500.0,0.00054794,120]
[320777007,1711553469347,-500.0,0.00054794,120]
[320777008,1711553469357,-500.0,0.00054794,120]
[320777009,1711553469366,-500.0,0.00054794,120]
[320777010,1711553469376,-335.37387455,0.00054794,120]
[320777011,1711553469385,-500.0,0.00054794,120]
[320777012,1711553469395,-500.0,0.00054794,120]
[320777013,1711553469405,-500.0,0.00054794,120]
[320777014,1711553469419,-500.0,0.00054794,120]
[320777015,1711553469430,-472.89699679,0.00054794,120]
[320777016,1711553469439,-500.0,0.00054794,120]
[320777017,1711553469449,-500.0,0.00054794,120]
[320777018,1711553469458,-512.9019656,0.00054794,120]
[320777019,1711553469468,-500.0,0.00054794,120]
[320777020,1711553469481,-500.0,0.00054794,120]
[320777021,1711553469491,-500.0,0.00054794,120]
[320777022,1711553469501,-500.0,0.00054794,120]
[320777023,1711553469511,-500.0,0.00054794,120]
[320777024,1711553469521,-500.0,0.00054794,120]
[320777025,1711553469530,-500.0,0.00054794,120]
[320777026,1711553469540,-500.0,0.00054794,120]
[320777027,1711553469550,-500.0,0.00054794,120]
[320777028,1711553469560,-500.0,0.00054794,120]
[320777029,1711553469571,-500.0,0.00054794,120]
[320777030,1711553469585,-500.0,0.00054794,120]
[320777031,1711553469595,-500.0,0.00054794,120]
[320777032,1711553469604,-500.0,0.00054794,120]
[320777033,1711553469614,-500.0,0.00054794,120]
[320777034,1711553469624,-500.0,0.00054794,120]
[320777035,1711553469635,-500.0,0.00054794,120]
[320777036,1711553469644,-500.0,0.00054794,120]
[320777037,1711553469654,-500.0,0.00054794,120]
[320777038,1711553469664,-686.01,0.00054794,120]
[320777039,1711553469673,-500.0,0.00054794,120]
[320777040,1711553469683,-500.0,0.00054794,120]
[320777041,1711553469692,-500.0,0.00054794,120]
[320777042,1711553469702,-500.0,0.00054794,60]
[320777043,1711553469712,-500.0,0.00054794,120]
[320777044,1711553469721,-500.0,0.00054794,120]
[320777045,1711553469730,-336.7,0.00054794,120]
[320777046,1711553469740,-500.0,0.00054794,120]
[320777047,1711553469749,-888.0,0.00054794,120]
[320777048,1711553469758,-888.0,0.00054794,120]
[320777049,1711553469767,-660.05360045,0.00054794,120]
[320777050,1711553469776,-500.0,0.00054794,120]
[320777051,1711553469785,-500.0,0.00054794,120]
[320777052,1711553469794,-500.0,0.00054794,120]
[320777053,1711553469804,-500.0,0.00054794,120]
[320777054,1711553469813,-500.0,0.00054794,120]
[320777055,1711553469822,-500.0,0.00054794,120]
[320777056,1711553469834,-500.0,0.00054794,120]
[320777057,1711553469844,-500.0,0.00054794,120]
[320777058,1711553469854,-500.0,0.00054794,120]
[320777059,1711553469863,-500.0,0.00054794,120]
[320777060,1711553469872,-500.0,0.00054794,120]
[320777061,1711553469882,-500.0,0.00054794,120]
[320777062,1711553469891,-500.0,0.00054794,120]
[320777063,1711553469901,-1511.11,0.00054794,120]
[320777064,1711553469911,-500.0,0.00054794,120]
[320777065,1711553469921,-500.0,0.00054794,120]
[320777066,1711553469930,-500.0,0.00054794,120]
[320777067,1711553469943,-1000.0,0.00054794,120]
[320777068,1711553469953,-1000.0,0.00054794,120]
[320777069,1711553469962,-500.0,0.00054794,120]
[320777070,1711553469971,-1414.6,0.00054794,120]
[320777071,1711553469981,-500.0,0.00054794,120]
[320777072,1711553469990,-522.53,0.00054794,120]
[320777073,1711553470000,-500.0,0.00054794,120]
[320777074,1711553470009,-1114.02,0.00054794,120]
[320777075,1711553470018,-509.32,0.00054794,120]
[320777076,1711553470027,-606.07,0.00054794,120]
[320777077,1711553470037,-500.0,0.00054794,120]
[320777078,1711553470046,-500.0,0.00054794,120]
[320777079,1711553470055,-500.0,0.00054794,120]
[320777080,1711553470065,-225.12,0.00054794,120]
[320777081,1711553470074,-500.0,0.00054794,120]
[320777082,1711553470087,-500.0,0.00054794,120]
[320777083,1711553470096,-588.34,0.00054794,120]
[320777084,1711553470106,-500.0,0.00054794,120]
[320777085,1711553470115,-500.0,0.00054794,120]
[320777086,1711553470124,-500.0,0.00054794,120]
[320777087,1711553470133,-500.0,0.00054794,120]
[320777088,1711553470143,-500.0,0.00054794,120]
[320777089,1711553470152,-592.0,0.00054794,120]
[320777090,1711553470161,-500.0,0.00054794,120]
[320777091,1711553470170,-500.0,0.00054794,120]
[320777092,1711553470486,-1726.93,0.00054794,120]
[320777093,1711553470498,-500.0,0.00054794,120]
[320777094,1711553470508,-500.0,0.00054794,120]
[320777095,1711553470518,-500.0,0.00054794,120]
[320777096,1711553470528,-500.0,0.00054794,120]
[320777097,1711553470537,-500.0,0.00054794,120]
[320777098,1711553470546,-500.0,0.00054794,120]
[320777099,1711553470555,-500.0,0.00054794,120]
[320777100,1711553470565,-946.71,0.00054794,120]
[320777101,1711553470575,-873.96,0.00054794,120]
[320777102,1711553470588,-500.0,0.00054794,120]
[320777103,1711553470597,-500.0,0.00054794,120]
[320777104,1711553470607,-500.0,0.00054794,120]
[320777105,1711553470616,-500.0,0.00054794,120]
[320777106,1711553470626,-500.0,0.00054794,120]
[320777107,1711553470635,-635.02,0.00054794,120]
[320777108,1711553470646,-500.0,0.00054794,120]
[320777109,1711553470656,-500.0,0.00054794,120]
[320777110,1711553470666,-500.0,0.00054794,120]
[320777111,1711553470675,-500.0,0.00054794,120]
[320777112,1711553470684,-500.0,0.00054794,120]
[320777113,1711553470694,-500.0,0.00054794,120]
[320777114,1711553470703,-500.0,0.00054794,120]
[320777115,1711553470713,-500.0,0.00054794,120]
[320777116,1711553470723,-854.01,0.00054794,120]
[320777117,1711553470733,-2541.81,0.00054794,120]
[320777118,1711553470743,-575.61,0.00054794,120]
[320777119,1711553470754,-516.63,0.00054794,120]
[320777120,1711553470765,-634.58063851,0.00054794,120]
[320777121,1711553470775,-500.0,0.00054794,120]
[320777122,1711553470786,-500.0,0.00054794,120]
[320777123,1711553470795,-2001.34,0.00054794,120]
[320777124,1711553470805,-554.28,0.00054794,120]
[320777125,1711553470815,-1018.81,0.00054794,120]
[320777126,1711553470825,-500.0,0.00054794,120]
[320777127,1711553470842,-500.0,0.00054794,120]
[320777128,1711553470851,-500.0,0.00054794,120]
[320777129,1711553470861,-1637.71,0.00054794,120]
[320777130,1711553470872,-654.52,0.00054794,120]
[320777131,1711553470882,-528.03,0.00054794,120]
[320777132,1711553470891,-574.63,0.00054794,120]
[320777133,1711553470901,-1671.89,0.00054794,120]
[320777134,1711553470911,-500.0,0.00054794,120]
[320777135,1711553470920,-700.77,0.00054794,120]
[320777136,1711553470930,-500.0,0.00054794,120]
[320777137,1711553470941,-513.3,0.00054794,120]
[320777138,1711553470950,-684.31,0.00054794,120]
[320777139,1711553470960,-500.0,0.00054794,120]
[320777140,1711553470969,-500.0,0.00054794,120]
[320777141,1711553470979,-500.0,0.00054794,120]
[320777142,1711553470989,-921.28208376,0.00054794,120]
[320777143,1711553470999,-500.0,0.00054794,120]
[320777144,1711553471010,-858.96,0.00054794,120]
[320777145,1711553471020,-500.0,0.00054794,120]
[320777146,1711553471029,-968.08,0.00054794,120]
[320777147,1711553471038,-500.0,0.00054794,120]
[320777148,1711553471047,-500.0,0.00054794,120]
[320777149,1711553471056,-500.0,0.00054794,120]
[320777150,1711553471068,-500.0,0.00054794,120]
[320777151,1711553471080,-500.0,0.00054794,120]
[320777152,1711553471092,-2283.82,0.00054794,120]
[320777153,1711553471105,-1165.63,0.00054794,120]
[320777154,1711553471115,-500.0,0.00054794,120]
[320777155,1711553471124,-500.0,0.00054794,120]
[320777156,1711553471134,-500.0,0.00054794,120]
[320777157,1711553471144,-500.0,0.00054794,120]
[320777158,1711553471153,-500.0,0.00054794,120]
[320777159,1711553471162,-500.0,0.00054794,120]
[320777160,1711553471173,-500.0,0.00054794,120]
[320777161,1711553471183,-876.96,0.00054794,120]
[320777162,1711553471192,-500.0,0.00054794,120]
[320777163,1711553471202,-500.0,0.00054794,120]
[320777164,1711553471212,-1197.31,0.00054794,120]
[320777165,1711553471221,-500.0,0.00054794,120]
[320777166,1711553471231,-675.93,0.00054794,120]
[320777167,1711553471240,-500.0,0.00054794,120]
[320777168,1711553471249,-500.0,0.00054794,120]
[320777169,1711553471259,-500.0,0.00054794,120]
[320777170,1711553471269,-500.0,0.00054794,120]
[320777171,1711553471279,-500.0,0.00054794,120]
[320777172,1711553471289,-2080.52,0.00054794,120]
[320777173,1711553471299,-539.72,0.00054794,120]
[320777174,1711553471309,-500.0,0.00054794,120]
[320777175,1711553471319,-500.0,0.00054794,120]
[320777176,1711553471332,-500.0,0.00054794,120]
[320777177,1711553471341,-500.0,0.00054794,120]
[320777178,1711553471351,-500.0,0.00054794,120]
[320777179,1711553471360,-522.73,0.00054794,120]
[320777180,1711553471370,-892.37,0.00054794,120]
[320777181,1711553471382,-500.0,0.00054794,120]
[320777182,1711553471391,-500.0,0.00054794,120]
[320777183,1711553471401,-1000.0,0.00054794,120]
[320777184,1711553471411,-1000.0,0.00054794,120]
[320777185,1711553471421,-597.52,0.00054794,60]
[320777186,1711553471430,-682.95,0.00054794,120]
[320777187,1711553471440,-500.0,0.00054794,120]
[320777188,1711553471450,-500.0,0.00054794,120]
[320777189,1711553471460,-528.79,0.00054794,120]
[320777190,1711553471472,-500.0,0.00054794,120]
[320777191,1711553471482,-1140.62,0.00054794,120]
[320777192,1711553471491,-500.0,0.00054794,120]
[320777193,1711553471502,-772.97,0.00054794,120]
[320777194,1711553471511,-500.0,0.00054794,120]
[320777195,1711553471521,-500.0,0.00054794,120]
[320777196,1711553471530,-500.0,0.00054794,120]
[320777197,1711553471539,-500.0,0.00054794,120]
[320777198,1711553471549,-557.54,0.00054794,120]
[320777199,1711553471558,-500.0,0.00054794,120]
[320777200,1711553471568,-865.02,0.00054794,120]
[320777201,1711553471580,-1075.76,0.00054794,120]
[320777202,1711553471589,-500.0,0.00054794,120]
[320777203,1711553471599,-1899.62,0.00054794,120]
[320777204,1711553471609,-500.0,0.00054794,120]
[320777205,1711553471618,-1060.57,0.00054794,120]
[320777206,1711553471628,-564.37,0.00054794,120]
[320777207,1711553471639,-500.0,0.00054794,120]
[320777208,1711553471648,-756.76,0.00054794,120]
[320777209,1711553471658,-500.0,0.00054794,120]
[320777210,1711553471668,-500.0,0.00054794,120]
[320777211,1711553471678,-500.0,0.00054794,120]
[320777212,1711553471687,-500.0,0.00054794,120]
[320777213,1711553471697,-500.0,0.00054794,120]
[320777214,1711553471707,-500.0,0.00054794,120]
[320777215,1711553471716,-500.0,0.00054794,120]
[320777216,1711553471726,-500.0,0.00054794,120]
[320777217,1711553471736,-649.4,0.00054794,120]
[320777218,1711553471746,-500.0,0.00054794,120]
[320777219,1711553471755,-1018.91,0.00054794,120]
[320777220,1711553471765,-500.0,0.00054794,120]
[320777221,1711553471775,-562.77,0.00054794,120]
[320777222,1711553471785,-500.0,0.00054794,120]
[320777223,1711553471795,-575.15,0.00054794,120]
[320777224,1711553471805,-500.0,0.00054794,120]
[320777225,1711553471815,-500.0,0.00054794,120]
[320777226,1711553471824,-500.0,0.00054794,120]
[320777227,1711553471838,-194.51097774,0.00054794,120]
[320777228,1711553471848,-500.0,0.00054794,120]
[320777229,1711553471858,-1651.75,0.00054794,120]
[320777230,1711553471867,-500.0,0.00054794,120]
[320777231,1711553471877,-500.0,0.00054794,120]
[320777232,1711553471887,-500.0,0.00054794,120]
[320777233,1711553471897,-547.25,0.00054794,120]
[320777234,1711553471907,-674.47,0.00054794,120]
[320777235,1711553471916,-562.04,0.00054794,120]
[320777236,1711553471926,-506.91,0.00054794,120]
[320777237,1711553471936,-716.75,0.00054794,120]
[320777238,1711553471945,-530.64,0.00054794,120]
[320777239,1711553471955,-887.0,0.00054794,120]
[320777240,1711553471964,-705.95,0.00054794,120]
[320777241,1711553471973,-500.0,0.00054794,120]
[320777242,1711553471982,-500.0,0.00054794,120]
[320777243,1711553471991,-500.0,0.00054794,120]
[320777244,1711553472001,-500.0,0.00054794,120]
[320777245,1711553472010,-500.0,0.00054794,120]
[320777246,1711553472020,-500.0,0.00054794,120]
[320777247,1711553472030,-666.0,0.00054794,120]
[320777248,1711553472039,-500.0,0.00054794,120]
[320777249,1711553472049,-1177.51,0.00054794,120]
[320777250,1711553472059,-500.0,0.00054794,120]
[320777251,1711553472068,-533.52930091,0.00054794,120]
[320777252,1711553472082,-1566.83,0.00054794,120]
[320777253,1711553472094,-1093.81,0.00054794,120]
[320777254,1711553472103,-411.01720725,0.00054794,120]
[320777255,1711553472112,-1048.37,0.00054794,120]
[320777256,1711553472122,-392.00836637,0.00054794,120]
[320777257,1711553472132,-500.0,0.00054794,120]
[320777258,1711553472141,-500.0,0.00054794,120]
[320777259,1711553472151,-500.0,0.00054794,2]
[320777260,1711553472161,-500.0,0.00054794,120]
[320777261,1711553472171,-500.0,0.00054794,120]
[320777262,1711553472180,-500.0,0.00054794,120]
[320777263,1711553472190,-939.72,0.00054794,120]
[320777264,1711553472200,-500.0,0.00054794,120]
[320777265,1711553472210,-504.69,0.00054794,120]
[320777266,1711553472219,-500.0,0.00054794,120]
[320777267,1711553472229,-500.0,0.00054794,120]
[320777268,1711553472238,-500.0,0.00054794,120]
[320777269,1711553472247,-500.0,0.00054794,120]
[320777270,1711553472257,-1763.11,0.00054794,120]
[320777271,1711553472267,-500.0,0.00054794,120]
[320777272,1711553472276,-1714.3,0.00054794,120]
[320777273,1711553472286,-559.21,0.00054794,120]
[320777274,1711553472295,-500.0,0.00054794,120]
[320777275,1711553472306,-244.25,0.00054794,120]
[320777276,1711553472317,-500.0,0.00054794,120]
[320777277,1711553472332,-504.74,0.00054794,120]
[320777278,1711553472341,-500.0,0.00054794,120]
[320777279,1711553472351,-591.74,0.00054794,120]
[320777280,1711553472361,-500.0,0.00054794,120]
[320777281,1711553472371,-694.27,0.00054794,120]
[320777282,1711553472381,-500.0,0.00054794,120]
[320777283,1711553472390,-500.0,0.00054794,120]
[320777284,1711553472399,-1080.54,0.00054794,120]
[320777285,1711553472409,-592.86,0.00054794,120]
[320777286,1711553472418,-500.0,0.00054794,120]
[320777287,1711553472428,-500.0,0.00054794,120]
[320777288,1711553472438,-813.35,0.00054794,120]
[320777289,1711553472447,-500.0,0.00054794,120]
[320777290,1711553472458,-611.66,0.00054794,120]
[320777291,1711553472467,-1029.47,0.00054794,120]
[320777292,1711553472478,-500.0,0.00054794,120]
[320777293,1711553472488,-500.0,0.00054794,120]
[320777294,1711553472501,-1471.99,0.00054794,120]
[320777295,1711553472511,-500.0,0.00054794,120]
[320777296,1711553472520,-500.0,0.00054794,120]
[320777297,1711553472529,-500.0,0.00054794,120]
[320777298,1711553472539,-933.64,0.00054794,120]
[320777299,1711553472548,-500.0,0.00054794,120]
[320777300,1711553472557,-500.0,0.00054794,120]
[320777301,1711553472566,-500.0,0.00054794,120]
[320777302,1711553472577,-670.02,0.00054794,120]
[320777303,1711553472594,-500.0,0.00054794,120]
[320777304,1711553472604,-3451.06,0.00054794,120]
[320777305,1711553472613,-500.0,0.00054794,120]
[320777306,1711553472623,-537.93,0.00054794,120]
[320777307,1711553472633,-500.0,0.00054794,120]
[320777308,1711553472642,-500.0,0.00054794,120]
[320777309,1711553472652,-500.0,0.00054794,120]
[320777310,1711553472663,-500.0,0.00054794,120]
[320777311,1711553472673,-500.0,0.00054794,120]
[320777312,1711553472684,-500.0,0.00054794,120]
[320777313,1711553472693,-500.0,0.00054794,120]
[320777314,1711553472703,-500.0,0.00054794,120]
[320777315,1711553472712,-1455.25,0.00054794,120]
[320777316,1711553472722,-500.0,0.00054794,120]
[320777317,1711553472731,-876.62,0.00054794,30]
[320777318,1711553472742,-500.0,0.00054794,120]
[320777319,1711553472752,-500.0,0.00054794,120]
[320777320,1711553472762,-500.0,0.00054794,120]
[320777321,1711553472771,-500.0,0.00054794,120]
[320777322,1711553472781,-500.0,0.00054794,120]
[320777323,1711553472791,-1586.12,0.00054794,120]
[320777324,1711553472801,-500.0,0.00054794,120]
[320777325,1711553472811,-500.0,0.00054794,120]
[320777326,1711553472820,-1030.5,0.00054794,120]
[320777327,1711553472833,-513.22,0.00054794,120]
[320777328,1711553472843,-500.0,0.00054794,120]
[320777329,1711553472853,-612.38,0.00054794,120]
[320777330,1711553472863,-500.0,0.00054794,120]
[320777331,1711553472872,-683.85,0.00054794,120]
[320777332,1711553472881,-1558.48,0.00054794,120]
[320777333,1711553472891,-500.0,0.00054794,120]
[320777334,1711553472901,-186.3242355,0.00054794,120]
[320777335,1711553472910,-506.05793455,0.00054794,120]
[320777336,1711553472920,-500.0,0.00054794,120]
[320777337,1711553472930,-500.0,0.00054794,120]
[320777338,1711553472939,-500.0,0.00054794,120]
[320777339,1711553472948,-500.0,0.00054794,120]
[320777340,1711553472958,-826.85,0.00054794,120]
[320777341,1711553472967,-856.93,0.00054794,120]
[320777342,1711553472976,-2000.0,0.00054794,15]
[320777343,1711553472986,-500.0,0.00054794,120]
[320777344,1711553472995,-602.87,0.00054794,120]
[320777345,1711553473004,-603.47995227,0.00054794,120]
[320777346,1711553473014,-500.0,0.00054794,120]
[320777347,1711553473024,-500.0,0.00054794,120]
[320777348,1711553473034,-500.0,0.00054794,120]
[320777349,1711553473043,-823.8,0.00054794,120]
[320777350,1711553473052,-500.0,0.00054794,120]
[320777351,1711553473061,-852.96,0.00054794,120]
[320777352,1711553473070,-500.0,0.00054794,120]
[320777353,1711553473082,-828.58,0.00054794,120]
[320777354,1711553473091,-500.0,0.00054794,120]
[320777355,1711553473100,-500.0,0.00054794,120]
[320777356,1711553473110,-500.0,0.00054794,120]
[320777357,1711553473119,-1646.63,0.00054794,120]
[320777358,1711553473129,-500.0,0.00054794,120]
[320777359,1711553473139,-500.0,0.00054794,120]
[320777360,1711553473148,-500.0,0.00054794,120]
[320777361,1711553473158,-500.0,0.00054794,120]
[320777362,1711553473167,-500.0,0.00054794,120]
[320777363,1711553473177,-500.0,0.00054794,120]
[320777364,1711553473186,-500.0,0.00054794,120]
[320777365,1711553473195,-500.0,0.00054794,120]
[320777366,1711553473204,-500.0,0.00054794,120]
[320777367,1711553473214,-500.0,0.00054794,120]
[320777368,1711553473224,-500.0,0.00054794,120]
[320777369,1711553473233,-500.0,0.00054794,120]
[320777370,1711553473243,-500.0,0.00054794,120]
[320777371,1711553473253,-500.0,0.00054794,120]
[320777372,1711553473263,-797.87,0.00054794,120]
[320777373,1711553473273,-668.8,0.00054794,120]
[320777374,1711553473283,-344.72,0.00054794,120]
[320777375,1711553473293,-500.0,0.00054794,120]
[320777376,1711553473302,-500.0,0.00054794,120]
[320777377,1711553473312,-500.0,0.00054794,120]
[320777378,1711553473321,-500.0,0.00054794,120]
[320777379,1711553473333,-1081.33,0.00054794,120]
[320777380,1711553473343,-462.22031,0.00054794,120]
[320777381,1711553473352,-151.0,0.00054794,120]
[320777382,1711553473362,-187.92,0.00054794,120]
[320777383,1711553473371,-543.77,0.00054794,120]
[320777384,1711553473381,-462.22031,0.00054794,120]
[320777385,1711553473390,-500.0,0.00054794,120]
[320777386,1711553473399,-668.96,0.00054794,120]
[320777387,1711553473408,-861.28,0.00054794,120]
[320777388,1711553473418,-500.0,0.00054794,120]
[320777389,1711553473427,-500.0,0.00054794,120]
[320777390,1711553473437,-500.0,0.00054794,120]
[320777391,1711553473446,-686.87,0.00054794,120]
[320777392,1711553473455,-151.0,0.00054794,120]
[320777393,1711553473465,-500.0,0.00054794,120]
[320777394,1711553473475,-1655.1,0.00054794,120]
[320777395,1711553473483,-1331.8,0.00054794,120]
[320777396,1711553473492,-736.21,0.00054794,120]
[320777397,1711553473504,-500.0,0.00054794,120]
[320777398,1711553473513,-8854.03,0.00054794,120]
[320777399,1711553473522,-500.0,0.00054794,120]
[320777400,1711553473532,-625.06,0.00054794,120]
[320777401,1711553473540,-500.0,0.00054794,120]
[320777402,1711553473550,-500.0,0.00054794,120]
[320777403,1711553473560,-569.7,0.00054794,120]
[320777404,1711553473763,-1026.49,0.00054794,120]
[320777405,1711553473776,-969.83,0.00054794,120]
[320777406,1711553473787,-500.0,0.00054794,120]
[320777407,1711553473796,-150.03,0.00054794,120]
[320777408,1711553473807,-500.0,0.00054794,120]
[320777409,1711553473817,-1814.83,0.00054794,120]
[320777410,1711553473830,-500.0,0.00054794,120]
[320777411,1711553473840,-500.0,0.00054794,120]
[320777412,1711553473850,-191.038377,0.00054794,120]
[320777413,1711553473860,-913.83,0.00054794,120]
[320777414,1711553473871,-1786.6,0.00054794,120]
[320777415,1711553473880,-500.0,0.00054794,7]
[320777416,1711553473890,-191.038377,0.00054794,120]
[320777417,1711553473901,-2102.27,0.00054794,120]
[320777418,1711553473911,-500.0,0.00054794,120]
[320777419,1711553473921,-901.38,0.00054794,120]
[320777420,1711553473931,-607.18,0.00054794,120]
[320777421,1711553473940,-1186.25,0.00054794,120]
[320777422,1711553473951,-1568.8,0.00054794,120]
[320777423,1711553473961,-760.83,0.00054794,120]
[320777424,1711553473971,-151.0,0.00054794,120]
[320777425,1711553473980,-151.0,0.00054794,120]
[320777426,1711553473990,-6991.21,0.00054794,120]
[320777427,1711553474000,-1537.94,0.00054794,120]
[320777428,1711553474010,-500.0,0.00054794,120]
[320777429,1711553474020,-900.9,0.00054794,120]
[320777430,1711553474030,-500.0,0.00054794,120]
[320777431,1711553474040,-500.0,0.00054794,120]
[320777432,1711553474050,-674.89,0.00054794,120]
[320777433,1711553474059,-4580.08,0.00054794,120]
[320777434,1711553474069,-7302.29,0.00054794,120]
[320777435,1711553474081,-588.79,0.00054794,120]
[320777436,1711553474091,-13451.5,0.00054794,120]
[320777437,1711553474101,-500.0,0.00054794,120]
[320777438,1711553474111,-500.0,0.00054794,120]
[320777439,1711553474122,-1537.29431,0.00054794,72]
[320777440,1711553474132,-500.0,0.00054794,120]
[320777441,1711553474142,-500.0,0.00054794,120]
[320777442,1711553474151,-5189.29,0.00054794,120]
[320777443,1711553474161,-591.81,0.00054794,120]
[320777444,1711553474170,-500.0,0.00054794,120]
[320777445,1711553474180,-550.61,0.00054794,120]
[320777446,1711553474190,-761.47,0.00054794,120]
[320777447,1711553474199,-595.42,0.00054794,120]
[320777448,1711553474209,-2785.35,0.00054794,120]
[320777449,1711553474219,-67609.91,0.00054794,120]
[320777450,1711553474228,-500.0,0.00054794,120]
[320777451,1711553474238,-500.0,0.00054794,120]
[320777452,1711553474247,-500.0,0.00054794,120]
[320777453,1711553474258,-671.65,0.00054794,120]
[320777454,1711553474268,-5671.67,0.00054794,120]
[320777455,1711553474278,-500.0,0.00054794,120]
[320777456,1711553474288,-3381.36,0.00054794,120]
[320777457,1711553474297,-1358.4,0.00054794,120]
[320777458,1711553474307,-500.0,0.00054794,120]
[320777459,1711553474317,-2092.96,0.00054794,120]
[320777460,1711553474327,-500.0,0.00054794,120]
[320777461,1711553474339,-1243.56,0.00054794,120]